[Event "ROU-chT 1st League 2019"]
[Site "Mamaia"]
[Date "2019.09.24"]
[Round "4.8"]
[White "Gonda, Laszlo"]
[Black "Sivuk, Vitaly"]
[Result "1/2-1/2"]
[ECO "A06"]
[WhiteElo "2541"]
[BlackElo "2559"]
[Annotator "ChessBase"]
[PlyCount "63"]
[EventDate "2019.09.21"]
[EventType "team-tourn"]
[EventCountry "ROU"]
[SourceTitle "playchess.com"]
[Source "ChessBase"]
[SourceQuality "1"]
[TimeControl "40/5400+30:1800+30"]

1. Nf3 {[%emt 0:00:00]} d5 {[%emt 0:00:00]} 2. g3 {[%emt 0:00:00]} Bg4 {[%emt 0:00:00]} 3. Bg2 {[%emt 0:00:00]} Nd7 {[%emt 0:00:09]} 4. c4 {[%emt 0:03:47]} e6 {[%emt 0:00:13]} 5. cxd5 {[%emt 0:00:36]} exd5 {[%emt 0:00:08]} 6. O-O {[%emt 0:00:56]} Ngf6 {[%emt 0:00:46]} 7. d3 {[%emt 0:01:10]} c6 {[%emt 0:00:12]} 8. h3 {[%emt 0:01:34]} Bxf3 {[%emt 0:05:08]} 9. exf3 {[%emt 0:00:08]} Be7 {[%emt 0:00:36]} 10. f4 {[%emt 0:00:05]} O-O {[%emt 0:00:12]} 11. Nd2 {[%emt 0:00:03]} Ne8 {[%emt 0:06:22]} 12. Nf3 {[%emt 0:00:13]} Nd6 {[%emt 0:00:15]} 13. h4 {[%emt 0:15:41]} Re8 {[%emt 0:00:42]} 14. Bh3 {[%emt 0:03:45]} Bf6 {[%emt 0:02:59]} 15. Qc2 {[%emt 0:00:34]} a5 {[%emt 0:04:10]} 16. a4 {[%emt 0:16:03]} Nb8 {[%emt 0:02:38]} 17. g4 {[%emt 0:03:00]} g6 {[%emt 0:01:44]} 18. f5 {[%emt 0:05:45]} gxf5 {[%emt 0:12:08]} 19. gxf5 {[%emt 0:00:41]} Nd7 {[%emt 0:06:04]} 20. Kh1 {[%emt 0:02:14]} Kh8 {[%emt 0:03:54]} 21. Rg1 {[%emt 0:08:40]} Qb6 {[%emt 0:07:53]} 22. Bf4 {[%emt 0:05:47]} Qb4 {[%emt 0:01:42]} 23. d4 {[%emt 0:02:18]} Ne4 {[%emt 0:04:36]} 24. Be3 {[%emt 0:03:15]} Rg8 {[%emt 0:02:54]} 25. Ng5 {[%emt 0:06:58]} Qe7 {[%emt 0:12:26]} 26. Rae1 {[%emt 0:01:08]} Rg7 {[%emt 0:07:16]} 27. Qd1 {[%emt 0:02:47]} Rag8 {[%emt 0:07:00]} 28. Qh5 {[%emt 0:01:18]} Qf8 {[%emt 0:00:13]} 29. Rg2 {[%emt 0:04:49]} c5 {[%emt 0:03:54]} 30. dxc5 {[%emt 0:07:25]} Nexc5 {[%emt 0:00:30]} 31. Reg1 {[%emt 0:00:42]} d4 {[%emt 0:00:47]} 32. Nxf7+ {[%emt 0:00:23]} 1/2-1/2

[Event "ROU-chT 1st League 2019"]
[Site "Mamaia"]
[Date "2019.09.24"]
[Round "4.9"]
[White "Georgescu, Tiberiu-Marian"]
[Black "Grigore, George-Gabriel"]
[Result "1/2-1/2"]
[ECO "D83"]
[WhiteElo "2508"]
[BlackElo "2491"]
[Annotator "ChessBase"]
[PlyCount "39"]
[EventDate "2019.09.21"]
[EventType "team-tourn"]
[EventCountry "ROU"]
[SourceTitle "playchess.com"]
[Source "ChessBase"]
[SourceQuality "1"]
[TimeControl "40/5400+30:1800+30"]

1. d4 {[%emt 0:00:00]} d5 {[%emt 0:00:00]} 2. Bf4 {[%emt 0:00:00]} Nf6 {[%emt 0:02:45]} 3. e3 {[%emt 0:00:00]} g6 {[%emt 0:03:02]} 4. c4 {[%emt 0:02:15]} Bg7 {[%emt 0:00:42]} 5. Nc3 {[%emt 0:00:15]} O-O {[%emt 0:00:56]} 6. Rc1 {[%emt 0:03:06]} dxc4 {[%emt 0:08:57]} 7. Bxc4 {[%emt 0:00:30]} c5 {[%emt 0:00:05]} 8. dxc5 {[%emt 0:05:37]} Qa5 {[%emt 0:00:37]} 9. Nf3 {[%emt 0:06:20]} Qxc5 {[%emt 0:00:25]} 10. Bb3 {[%emt 0:01:01]} Nc6 {[%emt 0:02:41]} 11. O-O {[%emt 0:00:16]} Qa5 {[%emt 0:00:12]} 12. Qe2 {[%emt 0:05:49]} Nh5 {[%emt 0:01:39]} 13. Bg3 {[%emt 0:16:04]} Bg4 {[%emt 0:05:52]} 14. Rfd1 {[%emt 0:12:45]} Nxg3 {[%emt 0:03:17]} 15. hxg3 {[%emt 0:00:02]} Rad8 {[%emt 0:02:08]} 16. Qc4 {[%emt 0:20:01]} Be6 {[%emt 0:05:38]} 17. Qa4 {[%emt 0:03:23]} Qxa4 {[%emt 0:06:54]} 18. Bxa4 {[%emt 0:03:05]} Ne5 {[%emt 0:24:22]} 19. Nd4 {[%emt 0:00:38]} Bc4 {[%emt 0:00:59]} 20. Bb5 {[%emt 0:02:19]} 1/2-1/2

[Event "ROU-chT 1st League 2019"]
[Site "Mamaia"]
[Date "2019.09.24"]
[Round "4.10"]
[White "Manea, Alexandru"]
[Black "David, Alexandru-Vasile"]
[Result "1/2-1/2"]
[ECO "E17"]
[WhiteElo "2305"]
[BlackElo "2424"]
[Annotator "NA"]
[PlyCount "73"]
[EventDate "2019.09.21"]
[EventType "team-tourn"]
[EventCountry "ROU"]
[SourceTitle "playchess.com"]
[Source "ChessBase"]
[SourceQuality "1"]
[TimeControl "40/5400+30:1800+30"]

1. d4 {[%emt 0:00:00]} Nf6 {[%emt 0:00:00]} 2. Nf3 {[%emt 0:00:02]} e6 {[%emt 0:00:00]} 3. g3 {[%emt 0:01:08]} b6 {[%emt 0:00:00]} 4. Bg2 {[%emt 0:00:12]} Bb7 {[%emt 0:00:00]} 5. c4 {[%emt 0:00:14]} Be7 {[%emt 0:00:03]} 6. Nc3 {[%emt 0:00:05]} Ne4 {[%emt 0:02:25]} 7. Bd2 {[%emt 0:00:31]} O-O {[%emt 0:02:34]} 8. O-O {[%emt 0:00:45]} d6 {[%emt 0:01:28]} 9. Qc2 {[%emt 0:00:13]} Nxd2 {[%emt 0:00:52]} 10. Qxd2 {[%emt 0:07:10]} Nd7 {[%emt 0:01:30]} 11. Ne1 {[%emt 0:02:09]} Bxg2 {[%emt 0:06:04]} 12. Nxg2 {[%emt 0:01:07]} e5 {[%emt 0:00:36]} 13. dxe5 {[%emt 0:13:23]} Nxe5 {[%emt 0:01:26]} 14. b3 {[%emt 0:00:10]} Qd7 {[%emt 0:06:26]} 15. f4 {[%emt 0:03:23]} Nc6 {[%emt 0:04:00]} 16. e4 {[%emt 0:01:54]} Rfe8 {[%emt 0:02:27]} 17. Rad1 {[%emt 0:00:51]} Bf8 {[%emt 0:02:53]} 18. Ne3 {[%emt 0:01:32]} Nd8 {[%emt 0:03:42]} 19. Rfe1 {[%emt 0:10:30]} Ne6 {[%emt 0:02:31]} 20. Ned5 {[%emt 0:08:34]} c6 {[%emt 0:02:55]} 21. Ne3 {[%emt 0:03:31]} Rad8 {[%emt 0:06:29]} 22. Qg2 {[%emt 0:17:30]} a5 {[%emt 0:01:20]} 23. Nc2 {[%emt 0:03:01]} Qc7 {[%emt 0:02:08]} 24. Qf3 {[%emt 0:02:26]} g6 {[%emt 0:05:22]} 25. Rd2 {[%emt 0:01:34]} Bg7 {[%emt 0:01:32]} 26. Nd1 {[%emt 0:00:05]} Qe7 {[%emt 0:06:46]} 27. Nf2 {[%emt 0:05:12]} Nc5 {[%emt 0:10:15]} 28. Kg2 {[%emt 0:01:07]} Qc7 {[%emt 0:05:06]} 29. Red1 {[%emt 0:01:31]} Rd7 {[%emt 0:04:08]} 30. Kg1 {[%emt 0:05:18]} Rde7 {[%emt 0:06:07]} 31. Re2 {[%emt 0:03:22]} Re6 {[%emt 0:04:09]} 32. Rde1 {[%emt 0:00:36]} Qe7 {[%emt 0:00:39]} 33. Kf1 {[%emt 0:00:58]} Qf6 {[%emt 0:01:19]} 34. Rd1 {[%emt 0:02:45]} Qe7 {[%emt 0:01:02]} 35. Rde1 {[%emt 0:00:04]} Qf6 {[%emt 0:01:06]} 36. Rd1 {[%emt 0:00:04]} Qe7 {[%emt 0:00:07]} 37. Rde1 {[%emt 0:00:00]} 1/2-1/2

[Event "ROU-chT 1st League 2019"]
[Site "Mamaia"]
[Date "2019.09.24"]
[Round "4.11"]
[White "Stoleriu, George"]
[Black "Szabo, Attila"]
[Result "1-0"]
[ECO "C90"]
[WhiteElo "2351"]
[BlackElo "2239"]
[Annotator "NA"]
[PlyCount "105"]
[EventDate "2019.09.21"]
[EventType "team-tourn"]
[EventCountry "ROU"]
[SourceTitle "playchess.com"]
[Source "ChessBase"]
[SourceQuality "1"]
[TimeControl "40/5400+30:1800+30"]

1. e4 {[%emt 0:00:00]} e5 {[%emt 0:00:42]} 2. Nf3 {[%emt 0:00:00]} Nc6 {[%emt 0:01:14]} 3. Bb5 {[%emt 0:00:00]} a6 {[%emt 0:00:20]} 4. Ba4 {[%emt 0:00:00]} d6 {[%emt 0:00:24]} 5. c3 {[%emt 0:00:14]} Nf6 {[%emt 0:00:34]} 6. d3 {[%emt 0:00:04]} Be7 {[%emt 0:04:27]} 7. O-O {[%emt 0:00:14]} O-O {[%emt 0:00:10]} 8. Re1 {[%emt 0:00:02]} b5 {[%emt 0:03:11]} 9. Bb3 {[%emt 0:00:06]} Bb7 {[%emt 0:00:07]} 10. Nbd2 {[%emt 0:00:18]} h6 {[%emt 0:04:27]} 11. Nf1 {[%emt 0:00:13]} Nh7 {[%emt 0:06:18]} 12. Ng3 {[%emt 0:04:20]} Ng5 {[%emt 0:00:32]} 13. Nf5 {[%emt 0:00:52]} Nxf3+ {[%emt 0:08:47]} 14. Qxf3 {[%emt 0:00:05]} Bg5 {[%emt 0:01:09]} 15. Qg3 {[%emt 0:01:44]} Qf6 {[%emt 0:01:33]} 16. Bxg5 {[%emt 0:03:59]} Qxg5 {[%emt 0:31:46]} 17. Re3 {[%emt 0:00:32]} Kh7 {[%emt 0:00:08]} 18. Qh3 {[%emt 0:00:47]} Qf6 {[%emt 0:00:29]} 19. Rg3 {[%emt 0:40:48]} Rg8 {[%emt 0:05:40]} 20. Rf3 {[%emt 0:02:30]} Nd8 {[%emt 0:09:31]} 21. Nh4 {[%emt 0:07:56]} Bc8 {[%emt 0:06:49]} 22. Rxf6 {[%emt 0:03:12]} Bxh3 {[%emt 0:00:08]} 23. Rxf7 {[%emt 0:00:11]} Nxf7 {[%emt 0:06:30]} 24. Bxf7 {[%emt 0:00:06]} Bg4 {[%emt 0:03:39]} 25. f3 {[%emt 0:03:27]} Bd7 {[%emt 0:00:07]} 26. Bxg8+ {[%emt 0:00:05]} Kxg8 {[%emt 0:00:25]} 27. f4 {[%emt 0:03:44]} g5 {[%emt 0:02:42]} 28. fxg5 {[%emt 0:00:12]} hxg5 {[%emt 0:00:02]} 29. Nf3 {[%emt 0:00:14]} g4 {[%emt 0:00:06]} 30. Nh4 {[%emt 0:00:23]} a5 {[%emt 0:00:42]} 31. Rf1 {[%emt 0:01:53]} b4 {[%emt 0:00:26]} 32. c4 {[%emt 0:01:26]} Ba4 {[%emt 0:00:06]} 33. Rf2 {[%emt 0:01:23]} g3 {[%emt 0:01:23]} 34. hxg3 {[%emt 0:00:38]} Bd1 {[%emt 0:01:24]} 35. Nf5 {[%emt 0:00:46]} b3 {[%emt 0:00:35]} 36. a3 {[%emt 0:02:55]} Bc2 {[%emt 0:00:51]} 37. Rd2 {[%emt 0:02:19]} Kf7 {[%emt 0:00:29]} 38. Ne3 {[%emt 0:02:29]} Rb8 {[%emt 0:00:04]} 39. Kf2 {[%emt 0:00:00]} c5 {[%emt 0:00:00]} 40. g4 {[%emt 0:00:00]} Ke6 {[%emt 0:00:00]} 41. Kg3 {[%emt 0:11:52]} Kf6 {[%emt 0:03:25]} 42. Nf5 {[%emt 0:11:31]} Rd8 {[%emt 0:01:29]} 43. Nh4 {[%emt 0:02:26]} Rg8 {[%emt 0:02:27]} 44. Nf3 {[%emt 0:04:05]} Kg6 {[%emt 0:02:06]} 45. Rf2 {[%emt 0:06:21]} Rd8 {[%emt 0:07:29]} 46. Nh4+ {[%emt 0:01:23]} Kg7 {[%emt 0:00:58]} 47. Nf5+ {[%emt 0:03:31]} Kg6 {[%emt 0:00:23]} 48. Rf3 {[%emt 0:01:50]} Rd7 {[%emt 0:01:44]} 49. Nh4+ {[%emt 0:00:26]} Kg7 {[%emt 0:00:09]} 50. g5 {[%emt 0:00:26]} Kh7 {[%emt 0:02:25]} 51. Kh3 {[%emt 0:02:27]} a4 {[%emt 0:02:03]} 52. g6+ {[%emt 0:01:12]} Kg7 {[%emt 0:00:57]} 53. Rg3 {[%emt 0:00:06]} 1-0

[Event "ROU-chT 1st League 2019"]
[Site "Mamaia"]
[Date "2019.09.24"]
[Round "4.12"]
[White "Vasiesiu, Victor"]
[Black "Petrisor, Adrian-Marian"]
[Result "1-0"]
[ECO "C15"]
[WhiteElo "2251"]
[BlackElo "2411"]
[Annotator "NA"]
[PlyCount "84"]
[EventDate "2019.09.21"]
[EventType "team-tourn"]
[EventCountry "ROU"]
[SourceTitle "playchess.com"]
[Source "ChessBase"]
[SourceQuality "1"]
[TimeControl "40/5400+30:1800+30"]

1. e4 {[%emt 0:00:00]} e6 {[%emt 0:00:06]} 2. d4 {[%emt 0:00:00]} d5 {[%emt 0:00:06]} 3. Nc3 {[%emt 0:00:00]} Bb4 {[%emt 0:01:11]} 4. exd5 {[%emt 0:00:00]} exd5 {[%emt 0:00:25]} 5. Bd3 {[%emt 0:00:00]} Ne7 {[%emt 0:04:03]} 6. Nf3 {[%emt 0:00:14]} Nbc6 {[%emt 0:01:50]} 7. O-O {[%emt 0:00:22]} Bg4 {[%emt 0:03:27]} 8. h3 {[%emt 0:00:16]} Bh5 {[%emt 0:00:41]} 9. a3 {[%emt 0:00:07]} Bd6 {[%emt 0:05:32]} 10. Re1 {[%emt 0:02:13]} Nxd4 {[%emt 0:14:53]} 11. g4 {[%emt 0:00:47]} Nxf3+ {[%emt 0:00:04]} 12. Qxf3 {[%emt 0:00:05]} Bg6 {[%emt 0:00:04]} 13. Bxg6 {[%emt 0:00:58]} hxg6 {[%emt 0:00:26]} 14. Nxd5 {[%emt 0:00:14]} O-O {[%emt 0:02:12]} 15. Bg5 {[%emt 0:01:18]} Bh2+ {[%emt 0:02:02]} 16. Kxh2 {[%emt 0:00:25]} Qxd5 {[%emt 0:00:04]} 17. Qxd5 {[%emt 0:01:01]} Nxd5 {[%emt 0:00:04]} 18. Rad1 {[%emt 0:00:40]} c6 {[%emt 0:03:59]} 19. c4 {[%emt 0:01:48]} Nc7 {[%emt 0:04:30]} 20. Re7 {[%emt 0:02:27]} Ne6 {[%emt 0:00:13]} 21. Be3 {[%emt 0:00:16]} b6 {[%emt 0:23:16]} 22. Rdd7 {[%emt 0:06:35]} a5 {[%emt 0:06:37]} 23. Rb7 {[%emt 0:07:03]} a4 {[%emt 0:01:27]} 24. Rxb6 {[%emt 0:00:37]} c5 {[%emt 0:00:23]} 25. Rbb7 {[%emt 0:02:34]} Ra6 {[%emt 0:02:33]} 26. Ra7 {[%emt 0:02:11]} Ra8 {[%emt 0:00:06]} 27. Re8+ {[%emt 0:01:05]} Rxe8 {[%emt 0:00:05]} 28. Rxa6 {[%emt 0:00:04]} Rb8 {[%emt 0:00:07]} 29. Bc1 {[%emt 0:00:05]} Nd4 {[%emt 0:00:21]} 30. Rxa4 {[%emt 0:01:00]} Nf3+ {[%emt 0:01:08]} 31. Kg3 {[%emt 0:21:39]} Rb3 {[%emt 0:00:37]} 32. Kf4 {[%emt 0:00:56]} Ne1 {[%emt 0:03:03]} 33. Ke4 {[%emt 0:02:53]} Nd3 {[%emt 0:00:18]} 34. Be3 {[%emt 0:00:14]} Nxb2 {[%emt 0:00:09]} 35. Ra8+ {[%emt 0:00:05]} Kh7 {[%emt 0:00:04]} 36. Kd5 {[%emt 0:00:14]} Nd3 {[%emt 0:00:33]} 37. Bxc5 {[%emt 0:03:54]} Nf4+ {[%emt 0:00:12]} 38. Ke4 {[%emt 0:00:46]} Nxh3 {[%emt 0:03:20]} 39. Be3 {[%emt 0:00:27]} Rc3 {[%emt 0:00:05]} 40. c5 {[%emt 0:00:00]} f5+ {[%emt 0:00:00]} 41. gxf5 {[%emt 0:01:27]} gxf5+ {[%emt 0:03:06]} 42. Kd4 {[%emt 0:03:01]} Rc2 {[%emt 0:01:02] Ke4} 1-0

[Event "ROU-chT 1st League 2019"]
[Site "Mamaia"]
[Date "2019.09.24"]
[Round "4.15"]
[White "Svetushkin, Dmitry"]
[Black "Ionescu, Constantin"]
[Result "1-0"]
[ECO "B43"]
[WhiteElo "2534"]
[BlackElo "2426"]
[Annotator "ChessBase"]
[PlyCount "55"]
[EventDate "2019.09.21"]
[EventType "team-tourn"]
[EventCountry "ROU"]
[SourceTitle "playchess.com"]
[Source "ChessBase"]
[SourceQuality "1"]
[TimeControl "40/5400+30:1800+30"]

1. e4 {[%emt 0:00:00]} c5 {[%emt 0:00:00]} 2. Nf3 {[%emt 0:00:00]} e6 {[%emt 0:00:00]} 3. Nc3 {[%emt 0:00:35]} a6 {[%emt 0:00:02]} 4. d4 {[%emt 0:00:09]} cxd4 {[%emt 0:00:11]} 5. Nxd4 {[%emt 0:00:07]} Qc7 {[%emt 0:00:05]} 6. Bd3 {[%emt 0:00:17]} Nf6 {[%emt 0:00:57]} 7. f4 {[%emt 0:00:23]} b5 {[%emt 0:00:20]} 8. e5 {[%emt 0:01:28]} b4 {[%emt 0:01:16]} 9. Na4 {[%emt 0:00:09]} Nd5 {[%emt 0:00:16]} 10. O-O {[%emt 0:00:32]} Bb7 {[%emt 0:00:12]} 11. Be4 {[%emt 0:02:07]} g6 {[%emt 0:24:18]} 12. c4 {[%emt 0:02:28]} bxc3 {[%emt 0:06:19]} 13. bxc3 {[%emt 0:03:41]} Ne7 {[%emt 0:05:51]} 14. Bxb7 {[%emt 0:13:15]} Qxb7 {[%emt 0:00:28]} 15. Ba3 {[%emt 0:00:06]} Nd5 {[%emt 0:08:35]} 16. Bxf8 {[%emt 0:00:46]} Kxf8 {[%emt 0:04:57]} 17. Qd2 {[%emt 0:07:24]} Nc6 {[%emt 0:05:43]} 18. Kh1 {[%emt 0:23:37]} Nce7 {[%emt 0:09:37]} 19. f5 {[%emt 0:04:02]} Nxf5 {[%emt 0:02:18]} 20. Nxf5 {[%emt 0:00:07]} exf5 {[%emt 0:09:28]} 21. c4 {[%emt 0:05:05]} Ne7 {[%emt 0:00:15]} 22. Nc5 {[%emt 0:00:18]} Qc7 {[%emt 0:01:34]} 23. Nxd7+ {[%emt 0:01:47]} Kg7 {[%emt 0:02:45]} 24. Qc3 {[%emt 0:00:48]} Rhd8 {[%emt 0:05:33]} 25. e6+ {[%emt 0:00:11]} Kg8 {[%emt 0:00:12]} 26. Nf6+ {[%emt 0:00:53]} Kf8 {[%emt 0:00:08]} 27. Nxh7+ {[%emt 0:00:04]} Kg8 {[%emt 0:00:07]} 28. Ng5 {[%emt 0:02:53]} 1-0

[Event "ROU-chT 1st League 2019"]
[Site "Mamaia"]
[Date "2019.09.24"]
[Round "4.16"]
[White "Cosma, Ioan"]
[Black "Iordachescu, Viorel"]
[Result "0-1"]
[ECO "D93"]
[WhiteElo "2394"]
[BlackElo "2602"]
[Annotator "RC"]
[PlyCount "70"]
[EventDate "2019.09.21"]
[EventType "team-tourn"]
[EventCountry "ROU"]
[SourceTitle "playchess.com"]
[Source "ChessBase"]
[SourceQuality "1"]
[TimeControl "40/5400+30:1800+30"]

1. d4 {[%emt 0:00:00]} Nf6 {[%emt 0:00:00]} 2. Nf3 {[%emt 0:00:00]} g6 {[%emt 0:00:04]} 3. c4 {[%emt 0:00:43]} Bg7 {[%emt 0:00:08]} 4. Nc3 {[%emt 0:00:05]} d5 {[%emt 0:00:06]} 5. Bf4 {[%emt 0:03:09]} O-O {[%emt 0:03:13]} 6. e3 {[%emt 0:00:06]} Be6 {[%emt 0:00:51]} 7. c5 {[%emt 0:04:35]} c6 {[%emt 0:00:34]} 8. h3 {[%emt 0:04:38]} b6 {[%emt 0:03:53]} 9. b4 {[%emt 0:00:17]} a5 {[%emt 0:10:46]} 10. a3 {[%emt 0:00:46]} axb4 {[%emt 0:00:58]} 11. axb4 {[%emt 0:00:09]} Nbd7 {[%emt 0:00:14]} 12. cxb6 {[%emt 0:38:22]} Qxb6 {[%emt 0:05:52]} 13. Rb1 {[%emt 0:00:28]} Ne4 {[%emt 0:12:43]} 14. Nxe4 {[%emt 0:03:25]} dxe4 {[%emt 0:00:09]} 15. Nd2 {[%emt 0:00:05]} Ba2 {[%emt 0:00:13]} 16. Rb2 {[%emt 0:03:53]} e5 {[%emt 0:01:19]} 17. Bc4 {[%emt 0:00:13]} exf4 {[%emt 0:07:46]} 18. Bxa2 {[%emt 0:00:32]} fxe3 {[%emt 0:01:29]} 19. fxe3 {[%emt 0:00:14]} c5 {[%emt 0:04:54]} 20. Nc4 {[%emt 0:05:26]} Qc7 {[%emt 0:03:26]} 21. bxc5 {[%emt 0:05:16]} Qg3+ {[%emt 0:03:50]} 22. Rf2 {[%emt 0:03:04]} Rxa2 {[%emt 0:00:12]} 23. O-O {[%emt 0:00:08]} Rxf2 {[%emt 0:05:36]} 24. Rxf2 {[%emt 0:00:05]} Nf6 {[%emt 0:02:29]} 25. Qc2 {[%emt 0:06:50]} h5 {[%emt 0:05:42]} 26. Rf1 {[%emt 0:04:14]} h4 {[%emt 0:00:28]} 27. c6 {[%emt 0:00:21]} Rc8 {[%emt 0:01:48]} 28. Nb6 {[%emt 0:01:31]} Qxe3+ {[%emt 0:01:52]} 29. Kh2 {[%emt 0:00:38]} Rc7 {[%emt 0:05:33]} 30. Na8 {[%emt 0:00:59]} Ra7 {[%emt 0:04:06]} 31. c7 {[%emt 0:00:20]} Rxa8 {[%emt 0:00:17]} 32. c8=Q+ {[%emt 0:00:08]} Rxc8 {[%emt 0:00:05]} 33. Qxc8+ {[%emt 0:00:05]} Kh7 {[%emt 0:00:10]} 34. Qc7 {[%emt 0:00:42]} Qxd4 {[%emt 0:00:58]} 35. Qxf7 {[%emt 0:00:29]} Qe5+ {[%emt 0:00:08]} 0-1

[Event "ROU-chT 1st League 2019"]
[Site "Mamaia"]
[Date "2019.09.24"]
[Round "4.17"]
[White "Nevednichy, Vladislav"]
[Black "Itkis, Boris"]
[Result "1/2-1/2"]
[ECO "C11"]
[WhiteElo "2522"]
[BlackElo "2323"]
[Annotator "ChessBase"]
[PlyCount "88"]
[EventDate "2019.09.21"]
[EventType "team-tourn"]
[EventCountry "ROU"]
[SourceTitle "playchess.com"]
[Source "ChessBase"]
[SourceQuality "1"]
[TimeControl "40/5400+30:1800+30"]

1. e4 {[%emt 0:00:00]} e6 {[%emt 0:00:00]} 2. d4 {[%emt 0:00:00]} d5 {[%emt 0:00:00]} 3. Nc3 {[%emt 0:00:00]} Nf6 {[%emt 0:00:02]} 4. Bg5 {[%emt 0:00:53]} dxe4 {[%emt 0:00:10]} 5. Nxe4 {[%emt 0:00:03]} Nbd7 {[%emt 0:00:07]} 6. Nf3 {[%emt 0:00:30]} Be7 {[%emt 0:00:06]} 7. Nxf6+ {[%emt 0:00:27]} Bxf6 {[%emt 0:00:07]} 8. h4 {[%emt 0:00:08]} O-O {[%emt 0:00:27]} 9. Bd3 {[%emt 0:04:37]} c5 {[%emt 0:01:07]} 10. Qe2 {[%emt 0:03:56]} cxd4 {[%emt 0:00:11]} 11. Qe4 {[%emt 0:02:16]} g6 {[%emt 0:00:03]} 12. O-O-O {[%emt 0:17:57]} e5 {[%emt 0:01:39]} 13. Bxf6 {[%emt 0:11:44]} Qxf6 {[%emt 0:01:38]} 14. Bb5 {[%emt 0:00:25]} Rd8 {[%emt 0:22:12]} 15. Bxd7 {[%emt 0:15:51]} Bxd7 {[%emt 0:00:06]} 16. Qxe5 {[%emt 0:00:04]} Qxe5 {[%emt 0:02:37]} 17. Nxe5 {[%emt 0:00:02]} f6 {[%emt 0:07:39]} 18. Nxd7 {[%emt 0:03:00]} Rxd7 {[%emt 0:00:05]} 19. Rh3 {[%emt 0:08:07]} Rad8 {[%emt 0:02:10]} 20. Rhd3 {[%emt 0:00:19]} Kf7 {[%emt 0:00:04]} 21. c4 {[%emt 0:06:42]} b6 {[%emt 0:03:06]} 22. Kc2 {[%emt 0:01:38]} h5 {[%emt 0:04:16]} 23. b4 {[%emt 0:00:47]} Ke6 {[%emt 0:00:35]} 24. Re1+ {[%emt 0:01:11]} Kf7 {[%emt 0:00:04]} 25. Kb3 {[%emt 0:00:36]} Rd6 {[%emt 0:04:51]} 26. Re2 {[%emt 0:02:31]} a6 {[%emt 0:03:24]} 27. Rc2 {[%emt 0:06:18]} Ke6 {[%emt 0:06:59]} 28. c5 {[%emt 0:04:41]} bxc5 {[%emt 0:00:06]} 29. Rxc5 {[%emt 0:00:38]} R8d7 {[%emt 0:03:21]} 30. Kc4 {[%emt 0:01:02]} Rd8 {[%emt 0:04:21]} 31. a4 {[%emt 0:00:20]} Rb8 {[%emt 0:03:37]} 32. a5 {[%emt 0:02:33]} Rbd8 {[%emt 0:00:09]} 33. f3 {[%emt 0:00:26]} f5 {[%emt 0:03:46]} 34. g3 {[%emt 0:01:19]} R8d7 {[%emt 0:04:29]} 35. f4 {[%emt 0:00:55]} Rd8 {[%emt 0:00:07]} 36. Re5+ {[%emt 0:00:12]} Kf6 {[%emt 0:00:05]} 37. b5 {[%emt 0:02:10]} axb5+ {[%emt 0:03:42]} 38. Rxb5 {[%emt 0:00:07]} Rc8+ {[%emt 0:00:22]} 39. Rc5 {[%emt 0:00:43]} Rcd8 {[%emt 0:00:51]} 40. Kb4 {[%emt 0:00:00]} Ke6 {[%emt 0:00:00]} 41. Kc4 {[%emt 0:01:41]} Kf6 {[%emt 0:03:53]} 42. Rb5 {[%emt 0:00:27]} Ke6 {[%emt 0:00:13]} 43. Re5+ {[%emt 0:11:11]} Kf6 {[%emt 0:00:13]} 44. Rb5 {[%emt 0:01:27]} Rc8+ {[%emt 0:00:18] Rb6 Ke6+} 1/2-1/2